Cogmind - Beta 13 @@@ ROGUE MODE // 2024.04.07 @ 02:18:12 Player: michaelman Result: Destroyed by Y-54 Guardian with Flak Gun Performance ------------- Evolutions (3) 1500 Regions Visited (5) 1000 Robots Destroyed (111) 555 Value Destroyed (3059) 3059 Prototype IDs (3) 60 Alien Tech Used (0) 0 Bonus (94) 94 TOTAL SCORE: 6268 Bonus ------- High Alert Combat Kills 110 Friendly Fire -16 Cogmind --------- Core Integrity 0/700 Matter 105/300 Energy 100/100 System Corruption 2% Temperature Cool (0) Movement Core (300) Ox5 Location -7/Factory Parts ------- > --- POWER (2) -------- (None) > --- PROPULSION (4) --- (None) > --- UTILITY (4) ------ Improved Heat Sink Medium Storage Unit Improved Signal Interpreter > --- WEAPON (3) ------- Heavy Rocket Launcher > --- INVENTORY (10) --- Aluminum Leg Aluminum Leg Improved Heat Sink Drone Bay (2/2) Heavy Rocket Launcher Peak State ------------ > --- POWER ------------ Ion Engine Light Ion Engine > --- PROPULSION ------- Improved Aluminum Leg Improved Aluminum Leg Carbon-fiber Leg Titanium Leg > --- UTILITY ---------- Improved Heat Sink Medium Storage Unit Improved Signal Interpreter Drone Bay > --- WEAPON ----------- Beam Rifle Gatling Laser Spear > --- INVENTORY -------- Improved Ion Engine Heavy Ion Engine Improved Heat Sink Component Analysis Suite Drone Bay Precision Beam Rifle Heavy Assault Rifle Heavy Assault Rifle Improved Assault Rifle [Rating: 36] Favorites ----------- Power Light Ion Engine Engine Light Ion Engine Power Core Light Nuclear Core Propulsion Improved Aluminum Leg Leg Improved Aluminum Leg Hover Unit Gravmag System Utility Improved Signal Interpreter Device Improved Heat Sink Storage Small Storage Unit Processor Improved Signal Interpreter Protection Light Armor Plating Weapon Light Cannon Energy Gun Field Laser Energy Cannon Beam Cannon Ballistic Gun Heavy Assault Rifle Ballistic Cannon Light Cannon Launcher Mini Grenade Launcher Piercing Weapon Spear Build | -11 -10 -9 -8 -8 -7 ------- Run | Yrd Mat Mat Mat Sto Fac Slots Evolved 6 | . . 2 2 . 2 Power 1 | . . . . . 1 Propulsion 2 | . . . 1 . 1 Utility 2 | . . 2 . . . Weapon 1 | . . . 1 . . Parts Attached 89 | 6 1 27 6 22 27 Power 19 | 1 . 8 . 3 7 Engine 16 | 1 . 8 . 2 5 Core 3 | . . . . 1 2 Reactor . | . . . . . . Propulsion 16 | 2 . 4 2 5 3 Treads . | . . . . . . Leg 15 | 2 . 4 2 5 2 Wheel . | . . . . . . Hover 1 | . . . . . 1 Flight . | . . . . . . Utility 19 | 1 . 7 2 3 6 Device 12 | . . 3 1 2 6 Storage 3 | 1 . 1 . 1 . Processor 3 | . . 2 1 . . Hackware . | . . . . . . Protection 1 | . . 1 . . . Artifact . | . . . . . . Weapon 35 | 2 1 8 2 11 11 Energy Gun 14 | 1 1 4 1 5 2 Energy Cannon 2 | . . 2 . . . Ballistic Gun 9 | 1 . . 1 2 5 Ballistic Cannon 3 | . . 1 . 2 . Launcher 6 | . . 1 . 2 3 Special Weapon . | . . . . . . Impact Weapon . | . . . . . . Slashing Weapon . | . . . . . . Piercing Weapon 1 | . . . . . 1 Special Melee Weapon . | . . . . . . Unidentified Prototypes 3 | . . . . . 3 Parts Lost 37 | . . 6 . 8 23 Power 6 | . . 1 . 1 4 Propulsion 12 | . . 4 . 3 5 Utility 7 | . . 1 . 1 5 Weapon 12 | . . . . 3 9 Highest Loss Streak 6 | . . 2 . 4 6 To Critical Strikes 1 | . . 1 . . . Average Slot Usage (%) 84 | . 85 86 86 86 80 Engine 9 | . 14 10 9 5 9 Core 1 | . . . . 2 3 Leg 19 | . 28 16 24 19 18 Device 10 | . . 15 10 8 10 Storage 9 | . 14 11 9 9 7 Processor 9 | . . 9 9 16 7 Energy Gun 9 | . 14 12 4 10 7 Energy Cannon 1 | . . 1 9 . . Ballistic Gun 6 | . 14 2 5 2 9 Ballistic Cannon 3 | . . 3 4 9 . Launcher 1 | . . 1 . 3 . Naked Turns . | . . . . . . Heaviest Build 36 | 12 12 22 24 31 36 Greatest Support 58 | 20 20 20 40 45 58 Greatest Overweight (x) 9 | . . 5 . 6 9 Average Overweight (x) . | . . . . . . Largest Inventory Capacity 10 | 8 8 8 8 10 10 Average Capacity 8 | 6 8 8 8 8 10 Most Carried 10 | 5 4 8 8 10 10 Average Carried 6 | 1 2 6 8 8 6 Final Capacity 10 | 8 8 8 8 10 10 Final Carried 9 | 1 4 8 8 9 5 Class Distribution -------------------- 32% | Scavenger-Gunner 28% | Scavenger-Mutant 19% | Mutant 19% | Gunner Dominant Class ---------------- Mutant | -10/Materials Scavenger-Mutant | -9/Materials Scavenger-Gunner | -8/Materials Gunner | -8/Storage Scavenger-Gunner | -7/Factory Resources | -11 -10 -9 -8 -8 -7 ----------- Run | Yrd Mat Mat Mat Sto Fac Matter Collected 1895 | 137 86 587 125 588 372 Remotely . | . . . . . . Salvage Created 3855 | . 86 1397 137 1221 1014 Parts 187 | . 4 73 9 64 37 Haulers Intercepted 4 | . . 1 . 3 . Recyclers Shooed 9 | . . 6 . 2 1 Parts Field Recycled . | . . . . . . Retrieved Matter . | . . . . . . Parts Self-Destructed . | . . . . . . Prevented . | . . . . . . Kills | -11 -10 -9 -8 -8 -7 ------- Run | Yrd Mat Mat Mat Sto Fac Combat Hostiles Destroyed 65 | . 2 20 1 22 20 Melee 1 | . . . . . 1 Guns 37 | . 2 14 . 10 11 Cannons 12 | . . 5 1 6 . AOE 14 | . . . . 6 8 Classes Destroyed 12 | . 1 9 1 . 1 Worker 9 | . . 5 1 2 1 Builder 12 | . . 3 . 7 2 Tunneler 2 | . . 1 . . 1 Hauler 4 | . . 1 . 3 . Recycler 15 | . . 7 1 2 5 Mechanic 1 | . . 1 . . . Watcher 3 | . . 2 . 1 . Swarmer 10 | . . 6 . . 4 Grunt 35 | . 2 11 . 10 12 Sentry 16 | . . 3 . 10 3 Hunter 3 | . . . 1 2 . Programmer 1 | . . . . . 1 Best Kill Streak 12 | . 1 12 2 8 9 Combat Bots Only 6 | . 1 6 1 5 5 Max Kills in Single Turn 5 | . 1 2 1 4 5 Gunslinging 1 | . . 1 . . . Exploded 3 | . . . . 1 3 Melee 1 | . . . . . 1 Uniques/NPCs Destroyed . | . . . . . . Combat | -11 -10 -9 -8 -8 -7 -------- Run | Yrd Mat Mat Mat Sto Fac Hostile Shots Fired 620 | . 17 135 4 143 321 Missed 206 | . 3 26 1 46 130 Damage Taken 5733 | . 152 1243 40 1663 2635 Core 1285 | . 12 339 . 234 700 Absorbed by Shields . | . . . . . . Core Remaining (%) 66 | 100 95 15 . 57 . Volleys Fired 289 | . 12 119 6 94 58 Largest 3 | . 2 2 3 3 3 Hottest 164 | . 70 110 123 154 164 Shots Fired 576 | . 24 216 13 184 139 Gun 449 | . 24 173 1 121 130 Cannon 100 | . . 40 12 48 . Launcher 27 | . . 3 . 15 9 Special . | . . . . . . Kinetic 223 | . 12 63 7 72 69 Thermal 326 | . 12 150 6 97 61 Explosive 27 | . . 3 . 15 9 Electromagnetic . | . . . . . . Robot Hit Streak 14 | . 5 10 4 14 13 Robot Miss Streak 13 | . 2 13 1 6 5 Penetration Max 1 | . . . . 1 . Secondary Targets 7 | . . 5 . 1 1 Max Gunslinging Chain 1 | . . 1 . 1 1 Shots Hit Robots 388 | . 19 148 8 109 104 Core Hits 230 | . 4 81 4 65 76 Critical Kills . | . . . . . . Critical Parts Destroyed . | . . . . . . Critical Strikes 15 | . . 3 . 9 3 Burn 13 | . . 2 . 8 3 Blast 2 | . . 1 . 1 . Melee Attacks 8 | . . . . . 8 Impact . | . . . . . . Slashing . | . . . . . . Piercing 8 | . . . . . 8 Sneak Attacks . | . . . . . . Combat Hostiles . | . . . . . . Follow-up Attacks . | . . . . . . Damage Inflicted 9003 | . 162 2023 134 3345 3339 Guns 4517 | . 146 1393 19 1285 1674 Cannons 1071 | . . 473 115 483 . Explosions 3267 | . . 152 . 1575 1540 Melee 125 | . . . . . 125 Ramming 23 | . 16 5 . 2 . Kinetic 2362 | . 74 576 81 850 781 Thermal 3226 | . 72 1290 53 918 893 Explosive 3267 | . . 152 . 1575 1540 Electromagnetic . | . . . . . . Impact . | . . . . . . Slashing . | . . . . . . Piercing 125 | . . . . . 125 Highest Corruption 2 | . . . . . 2 Average Corruption 2 | . . . . . 2 Corruption Purged . | . . . . . . Corruption Blocked . | . . . . . . Effects 2 | . . . . . 2 Parts Rejected 1 | . . . . . 1 Data Loss (minor) 1 | . . . . . 1 Overload Shots . | . . . . . . Overflow Damage 239 | . . . . 37 202 Projectiles 13 | . . . . 13 . Explosions 226 | . . . . 24 202 Melee . | . . . . . . Knockbacks 5 | . . 2 2 1 . Impact . | . . . . . . Kinetic 5 | . . 2 2 1 . Secondary . | . . . . . . Self-Inflicted Damage 201 | . . 30 . 54 117 Shots 8 | . . 2 . 2 4 Rammed . | . . . . . . Targets Rammed 7 | . 3 3 . 1 . Kicked 7 | . 3 3 . 1 . Crushed . | . . . . . . Highest Temperature 547 | . 69 492 . 246 547 Average Temperature 118 | . 31 159 . 63 113 Received Heat Transfer 2247 | . 84 465 . 648 1050 Effects 22 | . . 10 . 3 9 Shutdowns 4 | . . 2 . . 2 Energy Bleed 4 | . . 3 . . 1 Interference 9 | . . 2 . 3 4 Matter Decay 3 | . . 3 . . . Damage (core) 2 | . . . . . 2 Siege Activations . | . . . . . . Robots Corrupted . | . . . . . . Combat Hostiles . | . . . . . . Parts Fried . | . . . . . . Impact Corruptions . | . . . . . . Robots Melted 1 | . . 1 . . . Combat Hostiles 1 | . . 1 . . . Parts Melted 17 | . . 2 1 7 7 Heat Transferred 8152 | . 198 2861 111 2711 2271 Parts Sabotaged . | . . . . . . Parts Stolen . | . . . . . . Parts Stripped . | . . . . . . Power Chain Reactions . | . . . . . . Alert | -11 -10 -9 -8 -8 -7 ------- Run | Yrd Mat Mat Mat Sto Fac Peak Influence 597 | . 75 401 194 597 479 Initial 271 | . . 31 153 81 271 Average 213 | . 26 218 183 341 151 Maximum Alert Level 2 | . . 2 . 2 2 Low Security (%) 47 | 100 100 40 100 8 66 Level 1 43 | . . 58 . 64 31 Level 2 9 | . . 1 . 26 2 Level 3 . | . . . . . . Level 4 . | . . . . . . Level 5 . | . . . . . . High Security . | . . . . . . Max Security . | . . . . . . Squads Dispatched 11 | . 2 2 . 3 4 Investigation 3 | . 1 1 . 1 . Extermination 1 | . . . . . 1 Reinforcement 5 | . 1 1 . 1 2 Assault . | . . . . . . Garrison 2 | . . . . 1 1 Intercept . | . . . . . . Searches Triggered . | . . . . . . Construction Impeded 2 | . . . . 1 1 Haulers Reinforced . | . . . . . . Active Scanning Responses . | . . . . . . Cargo Convoy Interrupts . | . . . . . . Stealth | -11 -10 -9 -8 -8 -7 --------- Run | Yrd Mat Mat Mat Sto Fac Distress Signals 14 | . . 4 1 3 6 Communications Jammed . | . . . . . . Distress Signals . | . . . . . . Times Spotted 107 | . 4 33 2 35 33 Peak Tracking Total 7 | . 1 6 2 5 7 Tactical Retreats 3 | . . 1 . 2 . Traps | -11 -10 -9 -8 -8 -7 ------- Run | Yrd Mat Mat Mat Sto Fac Traps Triggered 7 | . 1 1 . 4 1 Indirectly . | . . . . . . Trap Hack Attempts . | . . . . . . Triggered . | . . . . . . Disarmed . | . . . . . . Reprogrammed . | . . . . . . Reused . | . . . . . . Traps Extracted . | . . . . . . Installed . | . . . . . . Triggered . | . . . . . . Machines | -11 -10 -9 -8 -8 -7 ---------- Run | Yrd Mat Mat Mat Sto Fac Machines Disabled 17 | . . 1 . 3 13 Max in Single Turn 4 | . . 1 . 1 4 Garrison Access 1 | . . . . . 1 Machines Repaired . | . . . . . . Machines Dismantled . | . . . . . . Machines Sabotaged . | . . . . . . Overloaded Fab Kills . | . . . . . . Hacking | -11 -10 -9 -8 -8 -7 --------- Run | Yrd Mat Mat Mat Sto Fac Machines Accessed 12 | . 1 1 1 5 4 Terminals 7 | . 1 1 1 3 1 Fabricators 2 | . . . . . 2 Repair Stations 1 | . . . . 1 . Recycling Units 1 | . . . . 1 . Scanalyzers . | . . . . . . Garrison Access 1 | . . . . . 1 Total Hacks 21 | . 1 2 3 8 7 Successful 11 | . 1 1 2 4 3 Failed 10 | . . 1 1 4 4 Catastrophic . | . . . . . . Database Lockouts . | . . . . . . Manual 5 | . . . 1 2 2 Terminals 12 | . 1 2 3 4 2 Fabricators 4 | . . . . . 4 Repair Stations 2 | . . . . 2 . Recycling Units 2 | . . . . 2 . Scanalyzers . | . . . . . . Garrison Access 1 | . . . . . 1 Terminal Hacks 6 | . 1 1 2 2 . Open Door 2 | . . . . 2 . Maintenance Status 2 | . . . 2 . . Surveillance Status 1 | . 1 . . . . Zone Layout 1 | . . 1 . . . Fabricator Hacks 2 | . . . . . 2 Network Status 1 | . . . . . 1 Build 1 | . . . . . 1 Repair Station Hacks . | . . . . . . Recycling Unit Hacks 2 | . . . . 2 . Retrieve Matter 2 | . . . . 2 . Scanalyzer . | . . . . . . Garrison Access Hacks 1 | . . . . . 1 Seal Access 1 | . . . . . 1 Unauthorized Hacks . | . . . . . . Terminals . | . . . . . . Fabricators . | . . . . . . Repair Stations . | . . . . . . Recycling Units . | . . . . . . Scanalyzers . | . . . . . . Garrison Access . | . . . . . . Data Cores Recovered . | . . . . . . Used . | . . . . . . Hacking Detections 7 | . . . . 4 3 Full Trace Events . | . . . . . . Feedback Events . | . . . . . . Feedback Blocked . | . . . . . . Robot Schematics Acquired . | . . . . . . Robots Built . | . . . . . . Authchips . | . . . . . . Time . | . . . . . . Total Robot Build Rating . | . . . . . . Part Schematics Acquired . | . . . . . . Parts Built 1 | . . . . . 1 Authchips . | . . . . . . Time 47 | . . . . . 47 Total Part Build Rating 5 | . . . . . 5 Parts Repaired . | . . . . . . Time . | . . . . . . Parts Recycled . | . . . . . . Recycled Matter . | . . . . . . Retrieved Matter . | . . . . . . Retrieved Components . | . . . . . . Parts Scanalyzed . | . . . . . . Part Schematics Acquired . | . . . . . . Parts Damaged . | . . . . . . Bothacking | -11 -10 -9 -8 -8 -7 ------------ Run | Yrd Mat Mat Mat Sto Fac Used RIF Installer . | . . . . . . Robots Hacked . | . . . . . . Non-combat . | . . . . . . Combat . | . . . . . . Robot Hacks Applied . | . . . . . . Relay Couplers Released . | . . . . . . Fabnet Peak Effective % . | . . . . . . Robots Rewired . | . . . . . . Allies Hacked . | . . . . . . Hacks Repelled . | . . . . . . Allies | -11 -10 -9 -8 -8 -7 -------- Run | Yrd Mat Mat Mat Sto Fac Total Allies . | . . . . . . Largest Group . | . . . . . . Highest-Rated Group . | . . . . . . Highest-Rated Ally . | . . . . . . Total Orders 3 | . . . . . 3 ROAM 1 | . . . . . 1 EXPLORE 2 | . . . . . 2 Ally Attacks . | . . . . . . Total Damage . | . . . . . . Kills . | . . . . . . Allies Corrupted . | . . . . . . Allies Melted . | . . . . . . Intel | -11 -10 -9 -8 -8 -7 ------- Run | Yrd Mat Mat Mat Sto Fac Robot Analysis Total . | . . . . . . Derelict Logs Recovered . | . . . . . . Drone Launches 4 | . . . . 2 2 Drone Recoveries 2 | . . . . 1 1 Exploration | -11 -10 -9 -8 -8 -7 ------------- Run | Yrd Mat Mat Mat Sto Fac Turns Passed 4790 | 60 385 1108 197 1442 1598 Spaces Moved 2446 | 48 201 496 141 728 832 Core 153 | 14 . 20 . 90 29 Treads . | . . . . . . Legs 2131 | 34 201 476 141 638 641 Wheels . | . . . . . . Hover 162 | . . . . . 162 Flight . | . . . . . . Fastest Speed 50 | 50 120 120 120 120 120 Average Speed 143 | 99 120 142 120 146 153 Slowest Speed 500 | 120 120 300 120 350 500 Overloaded Moves . | . . . . . . Propulsion Burnouts . | . . . . . . Robots Hopped . | . . . . . . Cave-ins Triggered . | . . . . . . Exploration Rate (%) 32 | 4 30 34 13 87 29 Regions Visited 5 Branch Regions 1 Pre-discovered Areas . | . . . . . . Known Exits Taken 2 | . . . 1 1 . Unknown Exits Taken 3 | 1 1 1 . . . Scrap Searched . | . . . . . . Spaces Dug . | . . . . . . Terrain Destroyed 189 | . . 16 . 66 107 Melee . | . . . . . . Projectile . | . . . . . . AOE 189 | . . 16 . 66 107 Terrain Rammed . | . . . . . . Walls Destroyed . | . . . . . . Machines Disabled . | . . . . . . Actions | -11 -10 -9 -8 -8 -7 --------- Run | Yrd Mat Mat Mat Sto Fac Total 3183 | 60 319 683 156 944 1021 Wait 242 | . 100 . . 76 66 Move 2441 | 47 200 495 140 727 832 Hop . | . . . . . . Pick Up 64 | 7 3 22 . 12 20 Fast Attach 16 | . . 5 5 6 . Attach 40 | 6 . 9 . 7 18 Detach 3 | . . 1 . 2 . Swap 33 | . 1 13 1 9 9 Drop 37 | . . 16 4 10 7 Fire 289 | . 12 119 6 94 58 Melee 8 | . . . . . 8 Ram . | . . . . . . Kick 7 | . 3 3 . 1 . Crush . | . . . . . . Escape Stasis 3 | . . . . . 3 Rewire . | . . . . . . Trap . | . . . . . . Miscellaneous . | . . . . . . Route ------- -11/Scrapyard -10/Materials -9/Materials -8/Materials -8/Storage -7/Factory History --------- Turn | Location | Event 6 | -11/Scrapyard | Discovered new exit (range 15) 61 | -11/Scrapyard | Entered Materials 309 | -10/Materials | Build established: Mutant 346 | -10/Materials | Discovered new exit (range 3) 446 | -10/Materials | Entered another Materials area 446 | -9/Materials | Evolved 2 slots: Utility x2 866 | -9/Materials | Build established: Scavenger-Mutant 1059 | -9/Materials | Core integrity fell below 50% 1212 | -9/Materials | Core integrity fell below 20% 1486 | -9/Materials | Discovered new exit (range 16) 1554 | -9/Materials | Entered another Materials area 1554 | -8/Materials | Evolved 2 slots: Propulsion x1, Weapon x1 1714 | -8/Materials | Discovered new exit (range 4) 1750 | -8/Materials | Identified exit to Storage 1751 | -8/Materials | Entered Storage 1896 | -8/Storage | Build established: Scavenger-Gunner 2025 | -8/Storage | Lost 4 parts (2n2w) 2286 | -8/Storage | Build established: Gunner 3152 | -8/Storage | Garrison activated, responded to threat 3168 | -8/Storage | Discovered new exit (range 12) 3192 | -8/Storage | Identified exit to Factory 3193 | -8/Storage | Entered Factory 3193 | -7/Factory | Accompanied by 1 ally 3193 | -7/Factory | Evolved 2 slots: Power x1, Propulsion x1 3294 | -7/Factory | Build established: Scavenger-Gunner 3811 | -7/Factory | Fabricated Imp. Cryofiber Web (x1) 4200 | -7/Factory | Core integrity fell below 50% 4237 | -7/Factory | Lost 5 parts (2p3n) 4409 | -7/Factory | Lost 3 parts (1u2w) 4686 | -7/Factory | Core integrity fell below 20% 4724 | -7/Factory | Garrison activated, responded to threat 4786 | -7/Factory | Lost 6 parts (1p1n1u3w) 4791 | -7/Factory | Destroyed by Y-54 Guardian with Flak Gun Last Messages --------------- 04783_ W-25 Informer sends out distress signal. 04783_ U-05 Engineer lays Concrete. 04784_ K-01 Serf collects debris. 04784_ U-05 Engineer lays Concrete. 04785_ K-01 Serf collects debris. 04785_ U-05 Engineer lays Concrete. 04786_ The unstable cave ceiling collapses. 04786_ Acquired Aluminum Leg. 04786_ U-05 Engineer lays Concrete. 04787_ Acquired 2 matter. 04787_ K-01 Serf collects debris. 04787_ U-05 Engineer lays Concrete. 04787_ U-05 Engineer builds a Wall. 04788_ U-05 Engineer lays Concrete. 04789_ K-01 Serf collects debris. 04789_ U-05 Engineer lays Concrete. 04790_ U-05 Engineer builds a Wall. 04791_ K-01 Serf collects debris. 04791_ U-05 Engineer lays Concrete. [Achievement: 5k Club] Map ----- +----------------------------------------------------+ | ?????????????????????????????????????????????????? | | ?????????????????????????????????????????????????? | | ?????????????????????????????????????????????????? | | ?????????????????????????????????????????????????? | | ?????????????????????????????????????????????????? | | ?????????????????????????????????????????????????? | | ?????????????????????????????????????????????????? | | ?????????????????????????????????????????????????? | | ?????????????????????????????????????????????????? | | ?????????????????????? ??????????????????????????? | | ???????????????????? ?????????????????????????? | | ????????????????## ?????????????????????????? | | ????????????????## "????????????????????????? | | ????????????????## "????????????????????????? | | ????????????? #### "???? #??????????????????? | | ????????????# ##k ? # ?????????????????? | | ?????????????? # """" ##?????????????????? | | ??????????????? # """" ##?????????????????? | | ???????###?????? """" #??????????????????? | | ???????#######?? # #??????????????????? | | ??????? # ######## "" ##????????????####+# | | ?????? # ######## "" ## ?????????# | | ????? T ########+##???# | | ????? t k o ??? | | ???? ^ Y ??? | | ???? k @ ???? | | ???# u u u #######????????? | | ???# u# # ##?????????????? | | ???# k # #???????????????# | | ???# w## #???????????????# | | ???# ## #######???????????????# | | ???# *##########???????????????# | | ???# ####/##########???????????????# | | ???# # ##???????????????# | | ???# ! ##???????????????# % | | ???# # ##???????????????# % | | ???#^ = ##?? ???????????# | | ???# # % ! ## ?????????# | | ???# # ] # ??????????#### | | #### + ] # ##??????????????? | | # # ]] ## #??????????????? | | # # % ## ##?????????????? | | # # ## ##?????????????? | | # # ##??????????#### | | # """ #??????????# | | # """ # #/##### # ###??????????# "" | | + """ # # ## # ######??????????# "" | | # # ###############???????????# "" | | # """ # # ################??????????# "" | | #### " " """ ##+###????# | +----------------------------------------------------+ Best States ------------- Heat Dissipation 53 Energy Generation 25 Energy Capacity 470 Matter Stores 300 Matter Capacity 300 Sight Range 16 Terrain Scan Density 110 Armor Coverage 150 Evasion (%) 55 Item Schematics ----------------- None Robot Schematics ------------------ None Fabricated ------------ Imp. Cryofiber Web | x1 | -7/Factory | Preloaded Alien Tech Used ----------------- None Achievements -------------- 5k Club Just What I Needed Challenges ------------ None Game ------ Seed SmartbombCoolingFlightbrick Manual? 0 Play Time 01:03:17 Cumulative 6.0 hours Start 2024.04.07 @ 00:29:19 End 2024.04.07 @ 02:18:12 Sessions 3 Manual Loads 0 Difficulty Rogue Special Mode None Game No. 12 Rogue 12 Adventurer 0 Explorer 0 Win Type - Total 0 Types 0/0/0/0/0/0/0/0/0 Lore% 3 Gallery% 9 Achievement% 12 Wizard Run 0 Options --------- Layout 0 ASCII 0 Keyboard 0 Movement Mouse Keybinds 0 Fullscreen 1 Font 18/SmallcapsGlow Map View 38x25 Zoom Use 98% Tactical HUD 1 Map Filters NONE Filters NONE Steam 1 RUN: ea6881e8-03b6-43fc-93ff-e77d6978b4e5